[Event "FIDE WCCC U8 2018"]
[Site "Santiago de Compostela"]
[Date "2018.11.04"]
[Round "1"]
[White "Reyes Zavaleta, Cristhian Yamil"]
[Black "Zverev, Lev"]
[Result "0-1"]
[ECO "A13"]
[WhiteElo "1117"]
[BlackElo "1723"]
[Annotator "NA RC"]
[PlyCount "90"]
[EventDate "2018.11.04"]
[EventType "swiss"]
[EventCountry "ESP"]
[SourceTitle "playchess.com"]
[Source "ChessBase"]
[SourceQuality "1"]
[TimeControl "40/5400+30:1800+30"]

1. c4 e6 {[%emt 0:00:00]} 2. Nc3 {[%emt 0:00:00]} d5 {[%emt 0:00:00]} 3. d3 {[%emt 0:00:00]} c6 {[%emt 0:00:10]} 4. Nf3 {[%emt 0:00:09]} Nf6 {[%emt 0:00:13]} 5. g3 {[%emt 0:00:18]} Bd6 {[%emt 0:00:28]} 6. Bg2 {[%emt 0:00:13]} O-O {[%emt 0:00:36]} 7. O-O {[%emt 0:00:06]} h6 {[%emt 0:00:45]} 8. Bd2 {[%emt 0:01:57]} a6 {[%emt 0:00:24]} 9. Qc1 {[%emt 0:00:09]} e5 {[%emt 0:00:12]} 10. cxd5 {[%emt 0:01:48]} cxd5 {[%emt 0:00:05]} 11. Nh4 {[%emt 0:01:17]} Bb4 {[%emt 0:02:17]} 12. a3 {[%emt 0:00:35]} Bxc3 {[%emt 0:00:09]} 13. Bxc3 {[%emt 0:00:21]} Nc6 {[%emt 0:00:10]} 14. Nf3 {[%emt 0:02:40]} Re8 {[%emt 0:00:21]} 15. Nd2 {[%emt 0:05:46]} d4 {[%emt 0:00:47]} 16. Bb4 {[%emt 0:00:55]} Nxb4 {[%emt 0:02:44]} 17. axb4 {[%emt 0:00:12]} Re7 {[%emt 0:00:19]} 18. Qb1 {[%emt 0:01:46]} Be6 {[%emt 0:00:11]} 19. Ra3 {[%emt 0:01:58]} Bd5 {[%emt 0:00:19]} 20. Qa1 {[%emt 0:01:10]} Bxg2 {[%emt 0:00:10]} 21. Kxg2 {[%emt 0:00:21]} Qb6 {[%emt 0:01:47]} 22. Rb3 {[%emt 0:02:14]} Rc8 {[%emt 0:00:31]} 23. Rc1 {[%emt 0:01:23]} Rxc1 {[%emt 0:00:15]} 24. Qxc1 {[%emt 0:00:14]} Rc7 {[%emt 0:00:05]} 25. Qd1 {[%emt 0:01:43]} Qc6+ {[%emt 0:01:47]} 26. Nf3 {[%emt 0:05:03]} Nd7 {[%emt 0:01:04]} 27. Kg1 {[%emt 0:06:17]} Qa4 {[%emt 0:01:31]} 28. Nd2 {[%emt 0:08:55]} a5 {[%emt 0:00:30]} 29. bxa5 {[%emt 0:01:06]} Nc5 {[%emt 0:00:11]} 30. Qc2 {[%emt 0:03:32]} Rc6 {[%emt 0:00:45]} 31. Kg2 {[%emt 0:08:02]} Nxb3 {[%emt 0:00:30]} 32. Qxb3 {[%emt 0:00:28]} Qxb3 {[%emt 0:00:09]} 33. Nxb3 {[%emt 0:00:08]} Rc2 {[%emt 0:00:07]} 34. Kf3 {[%emt 0:00:12]} Rxb2 {[%emt 0:00:07]} 35. Nc5 {[%emt 0:00:36]} Rb5 {[%emt 0:00:05]} 36. Nd7 {[%emt 0:01:23]} Rxa5 {[%emt 0:00:12]} 37. Ke4 {[%emt 0:00:13]} f6 {[%emt 0:00:09]} 38. f4 {[%emt 0:01:48]} Kf7 {[%emt 0:01:08]} 39. Nb6 {[%emt 0:03:17]} Ke6 {[%emt 0:00:43]} 40. f5+ {[%emt 0:00:00]} Ke7 {[%emt 0:00:00]} 41. h4 {[%emt 0:02:31]} Ra6 {[%emt 0:00:39]} 42. Nc4 {[%emt 0:01:43]} b5 {[%emt 0:00:15]} 43. Nb2 {[%emt 0:05:51]} Ra2 {[%emt 0:00:15]} 44. Nd1 {[%emt 0:00:13]} Rxe2+ {[%emt 0:00:17]} 45. Kd5 {[%emt 0:00:23]} Rd2 {[%emt 0:00:12] Kxd4} 0-1

[Event "FIDE WCCC U8 2018"]
[Site "Santiago de Compostela"]
[Date "2018.11.04"]
[Round "1"]
[White "Munoz Goncalves, Ivan"]
[Black "Azadaliyev, Jahandar"]
[Result "0-1"]
[ECO "B13"]
[WhiteElo "1101"]
[BlackElo "1674"]
[Annotator "NA"]
[PlyCount "108"]
[EventDate "2018.11.04"]
[EventType "swiss"]
[EventCountry "ESP"]
[SourceTitle "playchess.com"]
[Source "ChessBase"]
[SourceQuality "1"]
[TimeControl "40/5400+30:1800+30"]

1. e4 {[%emt 0:00:00]} c6 {[%emt 0:00:00]} 2. d4 {[%emt 0:00:00]} d5 {[%emt 0:00:00]} 3. exd5 {[%emt 0:00:15]} cxd5 {[%emt 0:00:00]} 4. Bd3 {[%emt 0:00:27]} Nc6 {[%emt 0:00:00]} 5. c3 {[%emt 0:00:15]} Nf6 {[%emt 0:00:04]} 6. Bf4 {[%emt 0:00:16]} Bg4 {[%emt 0:00:36]} 7. Nf3 {[%emt 0:00:15]} Qb6 {[%emt 0:03:47]} 8. Qb3 {[%emt 0:02:43]} e6 {[%emt 0:02:59]} 9. Qxb6 {[%emt 0:00:29]} axb6 {[%emt 0:00:01]} 10. Nbd2 {[%emt 0:00:38]} Bxf3 {[%emt 0:02:00]} 11. Nxf3 {[%emt 0:00:04]} Kd7 {[%emt 0:00:11]} 12. O-O {[%emt 0:01:56]} Bd6 {[%emt 0:00:40]} 13. Bg3 {[%emt 0:03:04]} Bxg3 {[%emt 0:01:19]} 14. fxg3 {[%emt 0:00:05]} Ke7 {[%emt 0:01:33]} 15. a3 {[%emt 0:01:02]} Rhe8 {[%emt 0:07:54]} 16. Rae1 {[%emt 0:02:15]} h6 {[%emt 0:00:57]} 17. Bb5 {[%emt 0:05:38]} Nd7 {[%emt 0:12:33]} 18. g4 {[%emt 0:02:14]} f6 {[%emt 0:02:11]} 19. h4 {[%emt 0:05:22]} Kd6 {[%emt 0:06:37]} 20. g5 {[%emt 0:01:51]} hxg5 {[%emt 0:00:33]} 21. hxg5 {[%emt 0:00:19]} e5 {[%emt 0:00:14]} 22. gxf6 {[%emt 0:02:28]} gxf6 {[%emt 0:00:38]} 23. dxe5+ {[%emt 0:00:43]} fxe5 {[%emt 0:00:21]} 24. Ng5 {[%emt 0:01:06]} Rg8 {[%emt 0:01:03]} 25. Nf7+ {[%emt 0:04:12]} Ke6 {[%emt 0:01:50]} 26. Nh6 {[%emt 0:02:05]} Rg6 {[%emt 0:00:50]} 27. Nf5 {[%emt 0:00:54]} Rag8 {[%emt 0:01:44]} 28. Rf2 {[%emt 0:02:30]} Rg5 {[%emt 0:02:19]} 29. Bxc6 {[%emt 0:03:45]} bxc6 {[%emt 0:00:29]} 30. Nd4+ {[%emt 0:00:16]} Kd6 {[%emt 0:00:15]} 31. Nf5+ {[%emt 0:00:40]} Kc7 {[%emt 0:00:22]} 32. Ne7 {[%emt 0:01:47]} R8g7 {[%emt 0:00:49]} 33. Nf5 {[%emt 0:00:58]} Rh7 {[%emt 0:02:24]} 34. b4 {[%emt 0:03:06]} b5 {[%emt 0:01:53]} 35. Ree2 {[%emt 0:04:52]} e4 {[%emt 0:02:01]} 36. Nd4 {[%emt 0:00:37]} Rgh5 {[%emt 0:00:28]} 37. Rf1 {[%emt 0:01:47]} Rh1+ {[%emt 0:00:22]} 38. Kf2 {[%emt 0:01:23]} Rf7+ {[%emt 0:00:25]} 39. Nf3 {[%emt 0:03:24]} Rxf1+ {[%emt 0:00:14]} 40. Kxf1 {[%emt 0:00:00]} exf3 {[%emt 0:00:00]} 41. Re3 {[%emt 0:01:41]} fxg2+ {[%emt 0:00:37]} 42. Kxg2 {[%emt 0:00:17]} Nb6 {[%emt 0:00:02]} 43. Re1 {[%emt 0:00:47]} Nc4 {[%emt 0:00:20]} 44. Ra1 {[%emt 0:02:24]} Kd6 {[%emt 0:00:31]} 45. Ra2 {[%emt 0:01:01]} Ra7 {[%emt 0:00:11]} 46. Kf2 {[%emt 0:00:24]} Rxa3 {[%emt 0:00:23]} 47. Rxa3 {[%emt 0:00:02]} Nxa3 {[%emt 0:00:14]} 48. Ke3 {[%emt 0:00:14]} c5 {[%emt 0:00:07]} 49. Kd3 {[%emt 0:00:58]} cxb4 50. cxb4 {[%emt 0:02:34]} Ke5 {[%emt 0:00:18]} 51. Kc3 {[%emt 0:00:39]} d4+ {[%emt 0:00:10]} 52. Kd3 {[%emt 0:00:21]} Nc4 {[%emt 0:00:06]} 53. Ke2 {[%emt 0:01:44]} Ke4 {[%emt 0:00:09]} 54. Kd1 {[%emt 0:00:09]} Kd3 {[%emt 0:00:06]} 0-1

[Event "FIDE WCCC U8 2018"]
[Site "Santiago de Compostela"]
[Date "2018.11.04"]
[Round "1"]
[White "Diniz Lopez, Sergio"]
[Black "Grooten, Tommy"]
[Result "0-1"]
[ECO "D32"]
[WhiteElo "1093"]
[BlackElo "1649"]
[Annotator "NA RC"]
[PlyCount "74"]
[EventDate "2018.11.04"]
[EventType "swiss"]
[EventCountry "ESP"]
[SourceTitle "playchess.com"]
[Source "ChessBase"]
[SourceQuality "1"]
[TimeControl "40/5400+30:1800+30"]

1. d4 {[%emt 0:00:00]} d5 {[%emt 0:00:00]} 2. c4 {[%emt 0:00:25]} e6 {[%emt 0:00:00]} 3. Nc3 {[%emt 0:00:21]} c5 {[%emt 0:04:23]} 4. e3 {[%emt 0:01:11]} Nc6 {[%emt 0:00:24]} 5. Nf3 {[%emt 0:00:42]} Nf6 {[%emt 0:01:04]} 6. Be2 {[%emt 0:00:28]} Be7 {[%emt 0:00:55]} 7. O-O {[%emt 0:01:08]} O-O {[%emt 0:00:21]} 8. b3 {[%emt 0:00:41]} Qc7 {[%emt 0:01:08]} 9. dxc5 {[%emt 0:00:29]} Rd8 {[%emt 0:00:23]} 10. Nb5 {[%emt 0:00:42]} Qb8 {[%emt 0:00:39]} 11. Qc2 {[%emt 0:01:26]} a6 {[%emt 0:00:12]} 12. Nc3 {[%emt 0:01:06]} dxc4 {[%emt 0:00:11]} 13. Bxc4 {[%emt 0:00:12]} Bxc5 {[%emt 0:00:06]} 14. Na4 {[%emt 0:00:39]} Be7 {[%emt 0:00:33]} 15. Nb6 {[%emt 0:01:10]} Ra7 {[%emt 0:00:10]} 16. Be2 {[%emt 0:01:00]} Qc7 {[%emt 0:00:23]} 17. Nc4 {[%emt 0:00:33]} Nb4 {[%emt 0:00:23]} 18. Qc3 {[%emt 0:01:02]} b5 {[%emt 0:00:08]} 19. Ba3 {[%emt 0:01:08]} Nbd5 {[%emt 0:00:13]} 20. Qe5 {[%emt 0:01:10]} bxc4 {[%emt 0:01:38]} 21. Bxe7 {[%emt 0:00:50]} Nxe7 {[%emt 0:01:02]} 22. Bxc4 {[%emt 0:00:49]} Ng6 {[%emt 0:00:27]} 23. Qc3 {[%emt 0:00:59]} Bb7 {[%emt 0:01:21]} 24. Qb2 {[%emt 0:01:42]} Ng4 {[%emt 0:04:05]} 25. Rad1 {[%emt 0:01:53]} Rxd1 {[%emt 0:00:31]} 26. Rxd1 {[%emt 0:01:32]} Bxf3 {[%emt 0:00:44]} 27. Rd8+ {[%emt 0:00:33]} Qxd8 {[%emt 0:00:11]} 28. gxf3 {[%emt 0:00:11]} N4e5 {[%emt 0:00:34]} 29. Be2 {[%emt 0:00:33]} Rd7 {[%emt 0:00:35]} 30. Qc2 {[%emt 0:00:47]} Qc7 {[%emt 0:00:16]} 31. Qe4 {[%emt 0:01:18]} f5 {[%emt 0:00:09]} 32. Qb1 {[%emt 0:00:23]} Nh4 {[%emt 0:00:07]} 33. f4 {[%emt 0:00:52]} Neg6 {[%emt 0:00:23]} 34. Bc4 {[%emt 0:00:45]} Qc6 {[%emt 0:00:13]} 35. Qf1 {[%emt 0:00:36]} Nf3+ {[%emt 0:00:10]} 36. Kg2 {[%emt 0:00:29]} Nd2+ {[%emt 0:00:05]} 37. Kg3 {[%emt 0:00:10]} Qf3# {[%emt 0:00:07]} 0-1